Cogmind - Beta 13 @@@ ROGUE MODE // 2024.04.15 @ 20:38:49 Player: Michael Result: Self-destructed Performance ------------- Evolutions (1) 500 Regions Visited (2) 400 Robots Destroyed (26) 130 Value Destroyed (636) 636 Prototype IDs (4) 80 Alien Tech Used (0) 0 Bonus (18) 18 TOTAL SCORE: 1764 Bonus ------- High Alert Combat Kills 18 Cogmind --------- Core Integrity 278/400 Matter 115/300 Energy 228/250 System Corruption 0% Temperature Cool (16) Movement Flying (31) Location -9/Materials Parts ------- > --- POWER (1) -------- Ion Engine > --- PROPULSION (4) --- Flight Unit Flight Unit Flight Unit Flight Unit > --- UTILITY (2) ------ Weight Redist. System > --- WEAPON (2) ------- Heavy Assault Rifle Heavy Assault Rifle > --- INVENTORY (5) ---- Light Ion Engine VTOL Module Improved Heat Sink Improved Heat Sink Improved Propulsion Shielding Peak State ------------ > --- POWER ------------ Improved Ion Engine > --- PROPULSION ------- Flight Unit Flight Unit Flight Unit Flight Unit > --- UTILITY ---------- Reaction Control System Improved Propulsion Shielding > --- WEAPON ----------- Heavy Assault Rifle Heavy Assault Rifle > --- INVENTORY -------- Improved Heat Sink Improved Heat Sink Improved Propulsion Shielding Improved Propulsion Shielding Heavy Assault Rifle [Rating: 17] Favorites ----------- Power Light Ion Engine Engine Light Ion Engine Propulsion Flight Unit Leg Aluminum Leg Wheel Wheel Flight Unit Flight Unit Utility Reaction Control System Device Reaction Control System Storage Small Storage Unit Processor Terrain Scan Processor Protection Improved Propulsion Shielding Weapon Heavy Assault Rifle Energy Gun Medium Laser Ballistic Gun Heavy Assault Rifle Build | -11 -10 -9 ------- Run | Yrd Mat Mat Slots Evolved 2 | . . 2 Power . | . . . Propulsion 2 | . . 2 Utility . | . . . Weapon . | . . . Parts Attached 40 | 8 15 17 Power 10 | 1 4 5 Engine 10 | 1 4 5 Core . | . . . Reactor . | . . . Propulsion 14 | 3 7 4 Treads . | . . . Leg 1 | 1 . . Wheel 2 | 2 . . Hover . | . . . Flight 11 | . 7 4 Utility 5 | 1 . 4 Device 2 | . . 2 Storage 1 | 1 . . Processor 1 | . . 1 Hackware . | . . . Protection 1 | . . 1 Artifact . | . . . Weapon 11 | 3 4 4 Energy Gun 1 | 1 . . Energy Cannon . | . . . Ballistic Gun 10 | 2 4 4 Ballistic Cannon . | . . . Launcher . | . . . Special Weapon . | . . . Impact Weapon . | . . . Slashing Weapon . | . . . Piercing Weapon . | . . . Special Melee Weapon . | . . . Unidentified Prototypes . | . . . Parts Lost 7 | . 5 2 Power 3 | . 2 1 Propulsion 3 | . 3 . Utility 1 | . . 1 Weapon . | . . . Highest Loss Streak 3 | . 3 1 To Critical Strikes . | . . . Average Slot Usage (%) 88 | . 72 98 Engine 11 | . 12 10 Wheel 4 | . 10 . Flight 32 | . 15 44 Device 9 | . . 16 Storage 2 | . 5 . Protection 2 | . . 4 Energy Gun 2 | . 4 . Ballistic Gun 22 | . 23 22 Naked Turns . | . . . Heaviest Build 16 | 12 14 16 Greatest Support 22 | 20 20 22 Greatest Overweight (x) 1 | . 1 . Average Overweight (x) . | . . . Largest Inventory Capacity 8 | 8 8 5 Average Capacity 5 | 7 6 5 Most Carried 8 | 8 8 5 Average Carried 5 | 5 5 4 Final Capacity 8 | 8 5 5 Final Carried 6 | 6 5 5 Class Distribution -------------------- 58% | Scavenger-Sprinter 41% | Mutant Dominant Class ---------------- Mutant | -10/Materials Scavenger-Sprinter | -9/Materials Resources | -11 -10 -9 ----------- Run | Yrd Mat Mat Matter Collected 729 | 208 188 333 Remotely . | . . . Salvage Created 949 | . 297 652 Parts 63 | . 17 46 Haulers Intercepted . | . . . Recyclers Shooed 2 | . 1 1 Parts Field Recycled . | . . . Retrieved Matter . | . . . Parts Self-Destructed . | . . . Prevented . | . . . Kills | -11 -10 -9 ------- Run | Yrd Mat Mat Combat Hostiles Destroyed 22 | . 8 14 Guns 22 | . 8 14 Classes Destroyed 8 | . 3 5 Builder 1 | . . 1 Recycler 1 | . 1 . Operator 1 | . . 1 Watcher 1 | . . 1 Swarmer 9 | . 6 3 Grunt 9 | . 2 7 Brawler 1 | . . 1 Sentry 3 | . . 3 Best Kill Streak 4 | . 4 4 Combat Bots Only 3 | . 3 3 Max Kills in Single Turn 2 | . 2 2 Gunslinging 1 | . 1 1 Exploded . | . . . Melee . | . . . Uniques/NPCs Destroyed . | . . . Combat | -11 -10 -9 -------- Run | Yrd Mat Mat Hostile Shots Fired 160 | . 87 73 Missed 57 | . 27 30 Damage Taken 1055 | . 547 508 Core 294 | . 172 122 Absorbed by Shields . | . . . Redirected to Shielding 15 | . . 15 Core Remaining (%) 65 | 100 31 . Volleys Fired 83 | . 38 45 Largest 2 | . 2 2 Hottest 70 | . 70 46 Shots Fired 166 | . 76 90 Gun 166 | . 76 90 Cannon . | . . . Launcher . | . . . Special . | . . . Kinetic 159 | . 69 90 Thermal 7 | . 7 . Explosive . | . . . Electromagnetic . | . . . Robot Hit Streak 10 | . 10 6 Robot Miss Streak 5 | . 5 3 Penetration Max . | . . . Secondary Targets 2 | . 1 1 Max Gunslinging Chain 1 | . 1 1 Shots Hit Robots 94 | . 37 57 Core Hits 39 | . 15 24 Critical Kills . | . . . Critical Parts Destroyed . | . . . Critical Strikes 1 | . 1 . Burn 1 | . 1 . Melee Attacks . | . . . Impact . | . . . Slashing . | . . . Piercing . | . . . Sneak Attacks . | . . . Combat Hostiles . | . . . Follow-up Attacks . | . . . Damage Inflicted 1207 | . 361 846 Guns 1207 | . 361 846 Cannons . | . . . Explosions . | . . . Melee . | . . . Ramming . | . . . Kinetic 1168 | . 322 846 Thermal 39 | . 39 . Explosive . | . . . Electromagnetic . | . . . Impact . | . . . Slashing . | . . . Piercing . | . . . Highest Corruption . | . . . Average Corruption . | . . . Corruption Purged . | . . . Corruption Blocked . | . . . Overload Shots . | . . . Overflow Damage . | . . . Projectiles . | . . . Explosions . | . . . Melee . | . . . Knockbacks . | . . . Impact . | . . . Kinetic . | . . . Secondary . | . . . Self-Inflicted Damage . | . . . Shots . | . . . Rammed . | . . . Targets Rammed . | . . . Kicked . | . . . Crushed . | . . . Highest Temperature 45 | . 45 21 Average Temperature 9 | . 12 5 Received Heat Transfer 297 | . 105 192 Siege Activations . | . . . Robots Corrupted . | . . . Combat Hostiles . | . . . Parts Fried . | . . . Impact Corruptions . | . . . Robots Melted . | . . . Combat Hostiles . | . . . Parts Melted . | . . . Heat Transferred 185 | . 185 . Parts Sabotaged . | . . . Parts Stolen . | . . . Parts Stripped . | . . . Power Chain Reactions . | . . . Alert | -11 -10 -9 ------- Run | Yrd Mat Mat Peak Influence 471 | . 215 471 Initial 90 | . . 90 Average 220 | . 110 321 Maximum Alert Level 2 | . 1 2 Low Security (%) 51 | 100 92 17 Level 1 26 | . 7 43 Level 2 21 | . . 38 Level 3 . | . . . Level 4 . | . . . Level 5 . | . . . High Security . | . . . Max Security . | . . . Squads Dispatched 1 | . . 1 Investigation . | . . . Extermination . | . . . Reinforcement 1 | . . 1 Assault . | . . . Garrison . | . . . Intercept . | . . . Searches Triggered . | . . . Construction Impeded . | . . . Haulers Reinforced . | . . . Active Scanning Responses . | . . . Cargo Convoy Interrupts . | . . . Stealth | -11 -10 -9 --------- Run | Yrd Mat Mat Distress Signals . | . . . Communications Jammed . | . . . Distress Signals . | . . . Times Spotted 34 | . 12 22 Peak Tracking Total 6 | . 4 6 Tactical Retreats 1 | . 1 . Traps | -11 -10 -9 ------- Run | Yrd Mat Mat Traps Triggered . | . . . Indirectly . | . . . Trap Hack Attempts . | . . . Triggered . | . . . Disarmed . | . . . Reprogrammed . | . . . Reused . | . . . Traps Extracted . | . . . Installed . | . . . Triggered . | . . . Machines | -11 -10 -9 ---------- Run | Yrd Mat Mat Machines Disabled . | . . . Max in Single Turn . | . . . Machines Repaired . | . . . Machines Dismantled . | . . . Machines Sabotaged . | . . . Overloaded Fab Kills . | . . . Hacking | -11 -10 -9 --------- Run | Yrd Mat Mat Machines Accessed 4 | . 3 1 Terminals 3 | . 3 . Fabricators . | . . . Repair Stations . | . . . Recycling Units 1 | . . 1 Scanalyzers . | . . . Garrison Access . | . . . Total Hacks 7 | . 6 1 Successful 4 | . 3 1 Failed 3 | . 3 . Catastrophic . | . . . Database Lockouts . | . . . Manual . | . . . Terminals 6 | . 6 . Fabricators . | . . . Repair Stations . | . . . Recycling Units 1 | . . 1 Scanalyzers . | . . . Garrison Access . | . . . Terminal Hacks 3 | . 3 . Prototype ID Bank 2 | . 2 . Zone Layout 1 | . 1 . Fabricator Hacks . | . . . Repair Station Hacks . | . . . Recycling Unit Hacks 1 | . . 1 Report Inventory 1 | . . 1 Scanalyzer . | . . . Garrison Access Hacks . | . . . Unauthorized Hacks . | . . . Terminals . | . . . Fabricators . | . . . Repair Stations . | . . . Recycling Units . | . . . Scanalyzers . | . . . Garrison Access . | . . . Data Cores Recovered . | . . . Used . | . . . Hacking Detections 2 | . 1 1 Full Trace Events . | . . . Feedback Events . | . . . Feedback Blocked . | . . . Robot Schematics Acquired . | . . . Robots Built . | . . . Authchips . | . . . Time . | . . . Total Robot Build Rating . | . . . Part Schematics Acquired . | . . . Parts Built . | . . . Authchips . | . . . Time . | . . . Total Part Build Rating . | . . . Parts Repaired . | . . . Time . | . . . Parts Recycled . | . . . Recycled Matter . | . . . Retrieved Matter . | . . . Retrieved Components . | . . . Parts Scanalyzed . | . . . Part Schematics Acquired . | . . . Parts Damaged . | . . . Bothacking | -11 -10 -9 ------------ Run | Yrd Mat Mat Used RIF Installer . | . . . Robots Hacked . | . . . Non-combat . | . . . Combat . | . . . Robot Hacks Applied . | . . . Relay Couplers Released . | . . . Fabnet Peak Effective % . | . . . Robots Rewired . | . . . Allies Hacked . | . . . Hacks Repelled . | . . . Allies | -11 -10 -9 -------- Run | Yrd Mat Mat Total Allies . | . . . Largest Group . | . . . Highest-Rated Group . | . . . Highest-Rated Ally . | . . . Total Orders . | . . . Ally Attacks . | . . . Total Damage . | . . . Kills . | . . . Allies Corrupted . | . . . Allies Melted . | . . . Intel | -11 -10 -9 ------- Run | Yrd Mat Mat Robot Analysis Total . | . . . Derelict Logs Recovered . | . . . Drone Launches . | . . . Drone Recoveries . | . . . Exploration | -11 -10 -9 ------------- Run | Yrd Mat Mat Turns Passed 889 | 57 337 495 Spaces Moved 1125 | 47 390 688 Core 18 | 18 . . Treads . | . . . Legs 16 | 16 . . Wheels 110 | 13 97 . Hover . | . . . Flight 981 | . 293 688 Fastest Speed 31 | 50 37 31 Average Speed 39 | 82 48 31 Slowest Speed 120 | 120 120 31 Overloaded Moves . | . . . Propulsion Burnouts . | . . . Robots Hopped 5 | . 3 2 Cave-ins Triggered . | . . . Exploration Rate (%) 37 | 3 58 52 Regions Visited 2 Branch Regions . Pre-discovered Areas . | . . . Known Exits Taken . | . . . Unknown Exits Taken 2 | 1 1 . Scrap Searched . | . . . Spaces Dug . | . . . Terrain Destroyed . | . . . Melee . | . . . Projectile . | . . . AOE . | . . . Terrain Rammed . | . . . Walls Destroyed . | . . . Machines Disabled . | . . . Actions | -11 -10 -9 --------- Run | Yrd Mat Mat Total 1418 | 62 472 884 Wait 112 | . 5 107 Move 1113 | 46 383 684 Hop 5 | . 3 2 Pick Up 34 | 8 13 13 Fast Attach 8 | 4 3 1 Attach 12 | 2 5 5 Detach . | . . . Swap 20 | 2 7 11 Drop 31 | . 15 16 Fire 83 | . 38 45 Melee . | . . . Ram . | . . . Kick . | . . . Crush . | . . . Escape Stasis . | . . . Rewire . | . . . Trap . | . . . Miscellaneous . | . . . Route ------- -11/Scrapyard -10/Materials (discovered 3 exits: *Mat x2 / [*Min]) -9/Materials (discovered 1 exit: [*Min]) History --------- Turn | Location | Event 5 | -11/Scrapyard | Discovered new exit (range 15) 58 | -11/Scrapyard | Entered Materials 194 | -10/Materials | Discovered new exit (range 12) 258 | -10/Materials | Lost 3 parts (1p2n) 261 | -10/Materials | Discovered new exit (range 14) 315 | -10/Materials | Build established: Mutant 347 | -10/Materials | Core integrity fell below 50% 373 | -10/Materials | Discovered new exit (range 9) 395 | -10/Materials | Entered another Materials area 395 | -9/Materials | Evolved 2 slots: Propulsion x2 716 | -9/Materials | Build established: Scavenger-Sprinter 848 | -9/Materials | Discovered new exit (range 11) 890 | -9/Materials | Self-destructed Last Messages --------------- 00709_ K-01 Serf cleans the Electrolysis Chamber. 00716_ K-01 Serf collects debris. 00719_ K-01 Serf cleans the Electrolysis Chamber. 00719_ R-06 Scavenger collects Flight Unit. 00722_ K-01 Serf cleans the Electrolysis Chamber. 00726_ K-01 Serf collects debris. 00809_ K-01 Serf destroyed. 00833_ G-34 Mercenary destroyed. 00844_ W-16 Scout destroyed. 00848_ EXIT=FOUND 00869_ U-05 Engineer destroyed. 00874_ R-06 Scavenger collects Terrain Scanner. 00878_ G-34 Mercenary destroyed. 00878_ R-06 Scavenger collects Wheel. 00881_ Reaction Control System destroyed. 00887_ G-47 Trooper destroyed. 00889_ K-01 Serf collects debris. Map ----- +----------------------------------------------------+ | ???????????????????????????????????????????????? | | ???????????????????????????????????????????????? | | ???????????????????????????????????????????????? | | ???????????????????????????????????????????????? | | ???????????????????????????????????????????????? | | ???????????????????????????????????????????????? | | ???????????????????????????????????????????????? | | ???????????????????????????????????????????????? | | ???????????????????????????????????????????????? | | ??###??????????????????????????????????????????? | | ## !##?????????????????????????????????????????? | | !#?????????????????????????????????????????? | | !#?????????????????????????????????????????? | | !#?????????????????????????????????????????? | | !#?????????????????????????????????????????? | | !##?????????????????????????????????????????? | | ####??????????????????????????????????????????? | | ##????????????????????????????????????????????? | | #????????????????????????????????????????????? | | #????###?????????????????????????????????????? | | #???? ?????????????????????????????????????? | | # """ """?#????????#?????????????????????????? | | # """ """ #????????# ????????????????????????? | | ## """ """ #????#####k#####???????????????????? | | ## """ """ #????# gg% #???????????????????? | | ## """ """ #????# !% * @ #???????????????????? | | ## #????# !%= #???????????????????? | | ## !#????# """=""" #???????????????????? | | #####+########### """ """ #???????????????????? | | + """ """ #???????????????????? | | ########## #???????????????????? | | #????????# ! #???????????????????? | | #########????????###########???????????????????? | | #??????????????????????????????????????? | | #??????????????????????????????????????? | | #??????????????????????????????????????? | | #??????????????????????????????????????? | | #??????????????????????????????????????? | | #??????????????????????????????????????? | | #??????????????????????????????????????? | | #??????????????????????????????????????? | | ?########??????????????????????????????????????? | | ???????????????????????????????????????????????? | | ##?????????????????????????????????????????????? | | "#?????????????????????????????????????????????? | | "#?????????????????????????????????????????????? | | |#?????????????????????????????????????????????? | | "#?????????????????????????????????????????????? | | |#?????????????????????????????????????????????? | | "#?????????????????????????????????????????????? | +----------------------------------------------------+ Best States ------------- Heat Dissipation 28 Energy Generation 12 Energy Capacity 265 Matter Stores 300 Matter Capacity 300 Sight Range 16 Terrain Scan Density 85 Additional Mass Support 6 Propulsion Shielding 66 Evasion (%) 71 Item Schematics ----------------- None Robot Schematics ------------------ None Fabricated ------------ Nothing Alien Tech Used ----------------- None Achievements -------------- None Challenges ------------ None Game ------ Seed RegenerativeSigixAxe Manual? 0 Play Time 00:35:00 Cumulative 12.6 hours Start 2024.04.15 @ 15:51:54 End 2024.04.15 @ 20:38:49 Sessions 1 Manual Loads 0 Difficulty Rogue Special Mode None Game No. 13 Rogue 13 Adventurer 0 Explorer 0 Win Type - Total 0 Types 0/0/0/0/0/0/0/0/0 Lore% 4 Gallery% 15 Achievement% 17 Wizard Run 0 Options --------- Layout 1 ASCII 0 Keyboard 0 Movement Mouse Keybinds 0 Fullscreen 2 Font 32/SmallcapsGlow Map View 50x35 Zoom Use 0% Tactical HUD 1 Map Filters NONE Filters NONE Steam 1 RUN: f4678ba5-1a69-4240-be03-451a5bc9c26d